[Event "*** Titled Tuesday Blitz"]
[Site "Chess.com"]
[Date "2018.06.05"]
[Round "8"]
[White "chessking2151"]
[Black "The_Unbeatable_One"]
[Result "0-1"]
[WhiteElo "2451"]
[BlackElo "2678"]
[TimeControl "180+2"]
[EndTime "14:56:27 PDT"]
[Termination "The_Unbeatable_One won by resignation"]

1. d4 {[%clk 0:03:01.9]} 1... Nf6 {[%clk 0:02:58.9]} 2. c4 {[%clk 0:03:01.6]}
2... g6 {[%clk 0:02:59.5]} 3. Nf3 {[%clk 0:02:56.4]} 3... Bg7 {[%clk 0:03:00.4]}
4. g3 {[%clk 0:02:57.8]} 4... d6 {[%clk 0:03:01.3]} 5. Bg2 {[%clk 0:02:59.2]}
5... O-O {[%clk 0:03:01.2]} 6. O-O {[%clk 0:03:00.7]} 6... Nbd7 {[%clk 0:03:01]}
7. Nc3 {[%clk 0:03:00.8]} 7... e5 {[%clk 0:02:59.7]} 8. Re1 {[%clk 0:02:50.2]}
8... Re8 {[%clk 0:03:00.1]} 9. e4 {[%clk 0:02:49.4]} 9... a5 {[%clk 0:02:54.6]}
10. dxe5 {[%clk 0:02:28.6]} 10... dxe5 {[%clk 0:02:54.9]} 11. b3 {[%clk
0:02:29.8]} 11... c6 {[%clk 0:02:52.5]} 12. Ba3 {[%clk 0:02:28.2]} 12... Bf8
{[%clk 0:02:53.6]} 13. Bxf8 {[%clk 0:02:27.5]} 13... Kxf8 {[%clk 0:02:53.8]} 14.
Qd6+ {[%clk 0:02:03.4]} 14... Qe7 {[%clk 0:02:54.5]} 15. Qd2 {[%clk 0:01:51]}
15... Nc5 {[%clk 0:02:51.1]} 16. Rad1 {[%clk 0:01:48]} 16... Bg4 {[%clk
0:02:50.9]} 17. Qe3 {[%clk 0:01:43.9]} 17... Rad8 {[%clk 0:02:46.9]} 18. h3
{[%clk 0:01:35.2]} 18... Bxf3 {[%clk 0:02:44.2]} 19. Bxf3 {[%clk 0:01:35.7]}
19... Kg7 {[%clk 0:02:45]} 20. Ne2 {[%clk 0:01:31.3]} 20... b6 {[%clk
0:02:41.9]} 21. Bg2 {[%clk 0:01:31.2]} 21... Qc7 {[%clk 0:02:42.3]} 22. Nc3
{[%clk 0:01:25]} 22... Ne6 {[%clk 0:02:42.2]} 23. Ne2 {[%clk 0:01:25.9]} 23...
c5 {[%clk 0:02:40.9]} 24. Rd2 {[%clk 0:01:20.8]} 24... Nd4 {[%clk 0:02:40.2]}
25. Nxd4 {[%clk 0:01:20.5]} 25... cxd4 {[%clk 0:02:39.9]} 26. Qe2 {[%clk
0:01:20.6]} 26... Nd7 {[%clk 0:02:41]} 27. h4 {[%clk 0:01:19]} 27... Nc5 {[%clk
0:02:37.5]} 28. Red1 {[%clk 0:01:15.6]} 28... Qe7 {[%clk 0:02:35.5]} 29. Qg4
{[%clk 0:01:14.7]} 29... f6 {[%clk 0:02:31.2]} 30. h5 {[%clk 0:01:14.5]} 30...
Qe6 {[%clk 0:02:22.7]} 31. Qh4 {[%clk 0:01:14.6]} 31... g5 {[%clk 0:02:22.9]}
32. h6+ {[%clk 0:01:08.9]} 32... Kg8 {[%clk 0:02:22.6]} 33. Qh5 {[%clk
0:01:04.9]} 33... Qf7 {[%clk 0:02:23.3]} 34. Qh1 {[%clk 0:00:56.9]} 34... Qg6
{[%clk 0:02:23.3]} 35. Bf3 {[%clk 0:00:56.1]} 35... g4 {[%clk 0:02:23.6]} 36.
Bg2 {[%clk 0:00:57.2]} 36... Qg5 {[%clk 0:02:22.2]} 37. Bf1 {[%clk 0:00:46.7]}
37... Kf7 {[%clk 0:02:03.4]} 38. Bd3 {[%clk 0:00:38]} 38... Rg8 {[%clk
0:02:04.3]} 39. a3 {[%clk 0:00:30.9]} 39... Rc8 {[%clk 0:01:52.2]} 40. Bc2
{[%clk 0:00:29.6]} 40... Rg6 {[%clk 0:01:44.3]} 41. b4 {[%clk 0:00:29.3]} 41...
axb4 {[%clk 0:01:44.5]} 42. axb4 {[%clk 0:00:29.9]} 42... Na6 {[%clk 0:01:44.5]}
43. c5 {[%clk 0:00:27.3]} 43... Rxh6 {[%clk 0:01:42.3]} 44. Qg2 {[%clk 0:00:25]}
44... bxc5 {[%clk 0:01:43.4]} 45. Bb3+ {[%clk 0:00:25]} 45... c4 {[%clk
0:01:43.6]} 46. Rc2 {[%clk 0:00:15.9]} 46... Nxb4 {[%clk 0:01:35.1]} 47. Rxc4
{[%clk 0:00:14.8]} 47... Rxc4 {[%clk 0:01:35.9]} 48. Bxc4+ {[%clk 0:00:16.7]}
48... Kg7 {[%clk 0:01:36.8]} 49. Rb1 {[%clk 0:00:17.4]} 49... Qd2 {[%clk
0:01:34.6]} 50. Qf1 {[%clk 0:00:14.9]} 50... f5 {[%clk 0:01:32.3]} 51. Ra1
{[%clk 0:00:11.9]} 51... fxe4 {[%clk 0:01:24.8]} 52. Ra7+ {[%clk 0:00:12.3]}
52... Kf6 {[%clk 0:01:23.7]} 53. Qa1 {[%clk 0:00:09]} 53... e3 {[%clk
0:01:21.5]} 54. Ra6+ {[%clk 0:00:06.9]} 54... Nxa6 {[%clk 0:01:19.4]} 55. Qxa6+
{[%clk 0:00:08.8]} 55... Kg5 {[%clk 0:01:20.3]} 0-1

[Event "*** Titled Tuesday Blitz"]
[Site "Chess.com"]
[Date "2018.06.05"]
[Round "8"]
[White "Fins0905"]
[Black "bugsbunny444"]
[Result "1-0"]
[WhiteElo "2602"]
[BlackElo "2357"]
[TimeControl "180+2"]
[EndTime "14:56:37 PDT"]
[Termination "Fins0905 won on time"]

1. d4 {[%clk 0:03:01.9]} 1... e6 {[%clk 0:03:00.7]} 2. Nf3 {[%clk 0:03:01.5]}
2... c5 {[%clk 0:03:01.5]} 3. c3 {[%clk 0:03:02.1]} 3... d5 {[%clk 0:03:02]} 4.
Bf4 {[%clk 0:03:02.6]} 4... Nf6 {[%clk 0:03:03.4]} 5. e3 {[%clk 0:03:03.5]} 5...
Nc6 {[%clk 0:03:04.5]} 6. Nbd2 {[%clk 0:03:03.8]} 6... Bd6 {[%clk 0:03:05.8]} 7.
Bg3 {[%clk 0:03:04.8]} 7... O-O {[%clk 0:03:06.9]} 8. Bd3 {[%clk 0:03:05.9]}
8... Qe7 {[%clk 0:03:08.2]} 9. Ne5 {[%clk 0:03:01]} 9... Nd7 {[%clk 0:03:09.4]}
10. Nxd7 {[%clk 0:02:51]} 10... Qxd7 {[%clk 0:03:09.8]} 11. Bxd6 {[%clk
0:02:33.1]} 11... Qxd6 {[%clk 0:03:11.7]} 12. f4 {[%clk 0:02:34.3]} 12... cxd4
{[%clk 0:03:00.5]} 13. cxd4 {[%clk 0:02:34.9]} 13... Bd7 {[%clk 0:02:24.2]} 14.
a3 {[%clk 0:02:30.8]} 14... Ne7 {[%clk 0:01:58]} 15. O-O {[%clk 0:02:19.4]}
15... Qb6 {[%clk 0:01:57.2]} 16. Qb3 {[%clk 0:02:03.7]} 16... Rfc8 {[%clk
0:01:15.3]} 17. Qxb6 {[%clk 0:01:54.5]} 17... axb6 {[%clk 0:01:16]} 18. Kf2
{[%clk 0:01:37.1]} 18... Rc7 {[%clk 0:01:07.6]} 19. g4 {[%clk 0:01:31]} 19...
Rac8 {[%clk 0:00:54.5]} 20. Ke2 {[%clk 0:01:31.8]} 20... Ba4 {[%clk 0:00:35.5]}
21. b3 {[%clk 0:01:22.2]} 21... Be8 {[%clk 0:00:30.2]} 22. a4 {[%clk 0:01:19.6]}
22... Nc6 {[%clk 0:00:26.6]} 23. Bb5 {[%clk 0:00:52.9]} 23... Nb4 {[%clk
0:00:24.2]} 24. Bxe8 {[%clk 0:00:53.5]} 24... Rxe8 {[%clk 0:00:25.7]} 25. Rac1
{[%clk 0:00:51.9]} 25... Rec8 {[%clk 0:00:24.6]} 26. Rxc7 {[%clk 0:00:51.9]}
26... Rxc7 {[%clk 0:00:26.5]} 27. f5 {[%clk 0:00:47.8]} 27... exf5 {[%clk
0:00:11]} 28. Rxf5 {[%clk 0:00:42.9]} 28... f6 {[%clk 0:00:08.8]} 29. e4 {[%clk
0:00:30.1]} 29... dxe4 {[%clk 0:00:04.1]} 30. Rb5 {[%clk 0:00:29.4]} 30... Nc6
{[%clk 0:00:02.8]} 31. Ke3 {[%clk 0:00:29]} 31... Rd7 {[%clk 0:00:03.5]} 32. d5
{[%clk 0:00:29.8]} 32... Ne5 {[%clk 0:00:04.1]} 33. Kxe4 {[%clk 0:00:30]} 33...
Nxg4 {[%clk 0:00:05.3]} 34. Nc4 {[%clk 0:00:29.7]} 34... Nxh2 {[%clk 0:00:03.5]}
35. Nxb6 {[%clk 0:00:30.3]} 35... Re7+ {[%clk 0:00:04.7]} 36. Kf4 {[%clk
0:00:28.9]} 36... g5+ {[%clk 0:00:04.2]} 37. Kg3 {[%clk 0:00:29.9]} 37... Nf1+
{[%clk 0:00:04.8]} 38. Kf2 {[%clk 0:00:29.4]} 38... Nd2 {[%clk 0:00:05.8]} 39.
Nc8 {[%clk 0:00:20.5]} 39... Ne4+ {[%clk 0:00:04.7]} 40. Ke3 {[%clk 0:00:20.4]}
40... Re5 {[%clk 0:00:04.4]} 41. Kd4 {[%clk 0:00:21]} 41... g4 {[%clk
0:00:03.1]} 42. Rxb7 {[%clk 0:00:21.9]} 42... g3 {[%clk 0:00:03.2]} 43. Ne7+
{[%clk 0:00:22.9]} 1-0

[Event "*** Titled Tuesday Blitz"]
[Site "Chess.com"]
[Date "2018.06.05"]
[Round "8"]
[White "BlackBoarder"]
[Black "1e41-0"]
[Result "0-1"]
[WhiteElo "2264"]
[BlackElo "2423"]
[TimeControl "180+2"]
[EndTime "14:56:40 PDT"]
[Termination "1e41-0 won on time"]

1. e4 {[%clk 0:03:01.9]} 1... c5 {[%clk 0:03:00.1]} 2. Nf3 {[%clk 0:03:02.5]}
2... e6 {[%clk 0:03:01.1]} 3. c3 {[%clk 0:03:03.6]} 3... Nf6 {[%clk 0:03:01.4]}
4. e5 {[%clk 0:03:04.4]} 4... Nd5 {[%clk 0:03:02.5]} 5. d4 {[%clk 0:03:05.1]}
5... cxd4 {[%clk 0:03:03.4]} 6. cxd4 {[%clk 0:03:06.5]} 6... d6 {[%clk
0:03:04.7]} 7. a3 {[%clk 0:03:07.3]} 7... Bd7 {[%clk 0:03:01.5]} 8. Bd3 {[%clk
0:03:07.2]} 8... Bc6 {[%clk 0:03:00.9]} 9. O-O {[%clk 0:03:07.6]} 9... Nd7
{[%clk 0:03:02.2]} 10. Qe2 {[%clk 0:03:08.3]} 10... Be7 {[%clk 0:03:02.9]} 11.
Bd2 {[%clk 0:03:09.6]} 11... O-O {[%clk 0:03:02.8]} 12. Nc3 {[%clk 0:03:10.8]}
12... dxe5 {[%clk 0:03:01.4]} 13. dxe5 {[%clk 0:03:11.4]} 13... Nxc3 {[%clk
0:02:58.4]} 14. Bxc3 {[%clk 0:03:12.1]} 14... Rc8 {[%clk 0:02:55.3]} 15. Rfd1
{[%clk 0:03:11.2]} 15... Qc7 {[%clk 0:02:52]} 16. Rac1 {[%clk 0:03:05.6]} 16...
Qb8 {[%clk 0:02:29.1]} 17. Re1 {[%clk 0:02:16]} 17... Rfd8 {[%clk 0:02:26]} 18.
Nd4 {[%clk 0:02:15.2]} 18... Bd5 {[%clk 0:02:19.9]} 19. Bb1 {[%clk 0:01:31.4]}
19... g6 {[%clk 0:02:07.5]} 20. Nf3 {[%clk 0:01:14]} 20... Bf8 {[%clk 0:01:51]}
21. h4 {[%clk 0:01:10.5]} 21... Rc4 {[%clk 0:01:45.4]} 22. Nd4 {[%clk
0:00:49.3]} 22... Bc5 {[%clk 0:01:18.4]} 23. Rcd1 {[%clk 0:00:29.4]} 23... h5
{[%clk 0:00:25.1]} 24. g3 {[%clk 0:00:13.7]} 24... Qc7 {[%clk 0:00:17.7]} 25.
Kh2 {[%clk 0:00:14]} 25... a6 {[%clk 0:00:18.3]} 26. Ba2 {[%clk 0:00:12.5]}
26... Rxc3 {[%clk 0:00:19.6]} 27. bxc3 {[%clk 0:00:13]} 27... Bxa2 {[%clk
0:00:20.7]} 28. Qxa2 {[%clk 0:00:14.1]} 28... Nxe5 {[%clk 0:00:22.1]} 29. Qe2
{[%clk 0:00:09.7]} 29... Ng4+ {[%clk 0:00:22.5]} 30. Kg2 {[%clk 0:00:09.1]}
30... e5 {[%clk 0:00:23.1]} 31. Nf3 {[%clk 0:00:08.3]} 31... Re8 {[%clk
0:00:24.4]} 32. Rf1 {[%clk 0:00:07.9]} 32... e4 {[%clk 0:00:25]} 33. Ng5 {[%clk
0:00:08.6]} 33... Qc6 {[%clk 0:00:24]} 34. Kg1 {[%clk 0:00:05.1]} 34... Qc7
{[%clk 0:00:24.1]} 35. Kg2 {[%clk 0:00:05.4]} 35... Qc6 {[%clk 0:00:21.4]} 36.
Kg1 {[%clk 0:00:06.9]} 36... Qf6 {[%clk 0:00:22.4]} 37. Rd2 {[%clk 0:00:07]}
37... e3 {[%clk 0:00:22.9]} 38. fxe3 {[%clk 0:00:07.3]} 38... Bxe3+ {[%clk
0:00:24.1]} 39. Kg2 {[%clk 0:00:04.6]} 39... Qc6+ {[%clk 0:00:25]} 40. Rf3
{[%clk 0:00:02.4]} 40... Bxd2 {[%clk 0:00:25.5]} 41. Qxd2 {[%clk 0:00:04.3]}
41... Re3 {[%clk 0:00:25.2]} 42. Qd8+ {[%clk 0:00:03.9]} 42... Kg7 {[%clk
0:00:25.5]} 43. Qd4+ {[%clk 0:00:04.5]} 43... f6 {[%clk 0:00:22.9]} 0-1

[Event "*** Titled Tuesday Blitz"]
[Site "Chess.com"]
[Date "2018.06.05"]
[Round "8"]
[White "Amirreza_p"]
[Black "Shant_Sargsyan"]
[Result "1-0"]
[WhiteElo "2718"]
[BlackElo "2882"]
[TimeControl "180+2"]
[EndTime "14:56:47 PDT"]
[Termination "Amirreza_p won by resignation"]

1. e4 {[%clk 0:03:01.9]} 1... e5 {[%clk 0:02:58.2]} 2. Nf3 {[%clk 0:03:02.8]}
2... Nc6 {[%clk 0:02:59.7]} 3. Bc4 {[%clk 0:03:04.2]} 3... Bc5 {[%clk
0:03:00.2]} 4. O-O {[%clk 0:03:04.9]} 4... Nf6 {[%clk 0:03:00.2]} 5. d3 {[%clk
0:03:06.4]} 5... O-O {[%clk 0:02:58.6]} 6. Re1 {[%clk 0:03:06.3]} 6... h6 {[%clk
0:02:58.9]} 7. h3 {[%clk 0:03:06.6]} 7... d6 {[%clk 0:02:58.6]} 8. c3 {[%clk
0:03:07.4]} 8... a5 {[%clk 0:02:59.2]} 9. Nbd2 {[%clk 0:03:06.9]} 9... Re8
{[%clk 0:02:59.3]} 10. Nf1 {[%clk 0:03:07.6]} 10... Be6 {[%clk 0:02:59.9]} 11.
Bb5 {[%clk 0:03:08.2]} 11... Bd7 {[%clk 0:03:00.8]} 12. Ng3 {[%clk 0:03:06.9]}
12... Ba7 {[%clk 0:03:01.3]} 13. Ba4 {[%clk 0:02:53.7]} 13... Ne7 {[%clk
0:03:01]} 14. Bc2 {[%clk 0:02:51.4]} 14... Ng6 {[%clk 0:03:02]} 15. d4 {[%clk
0:02:49.2]} 15... a4 {[%clk 0:02:58.9]} 16. Be3 {[%clk 0:02:48.6]} 16... exd4
{[%clk 0:02:52.6]} 17. cxd4 {[%clk 0:02:50.5]} 17... b5 {[%clk 0:02:53.8]} 18.
Qd2 {[%clk 0:02:46.5]} 18... Bc6 {[%clk 0:02:45.9]} 19. Bxh6 {[%clk 0:02:34.8]}
19... gxh6 {[%clk 0:02:35.9]} 20. Qxh6 {[%clk 0:02:36.7]} 20... Qe7 {[%clk
0:02:37.2]} 21. e5 {[%clk 0:02:13.7]} 21... Qf8 {[%clk 0:02:38.1]} 22. Qxf8+
{[%clk 0:02:13.4]} 22... Nxf8 {[%clk 0:02:34.7]} 23. exf6 {[%clk 0:02:12.5]}
23... Bxf3 {[%clk 0:02:36.1]} 24. gxf3 {[%clk 0:02:14.4]} 24... Bxd4 {[%clk
0:02:37.3]} 25. Nh5 {[%clk 0:01:37.8]} 25... Bxb2 {[%clk 0:02:29.8]} 26. Rab1
{[%clk 0:01:38.8]} 26... a3 {[%clk 0:02:25.9]} 27. Kh1 {[%clk 0:01:33.6]} 27...
Rxe1+ {[%clk 0:01:51.4]} 28. Rxe1 {[%clk 0:01:35.5]} 28... Ng6 {[%clk
0:01:52.2]} 29. Rg1 {[%clk 0:01:28.3]} 29... b4 {[%clk 0:01:29.7]} 30. f4 {[%clk
0:00:43.7]} 30... Kf8 {[%clk 0:00:20.9]} 31. f5 {[%clk 0:00:29.8]} 31... Ne5
{[%clk 0:00:21.8]} 32. Rg7 {[%clk 0:00:28.7]} 32... Rc8 {[%clk 0:00:08]} 33. Bb3
{[%clk 0:00:22.2]} 33... c5 {[%clk 0:00:05.3]} 34. Bd5 {[%clk 0:00:21.9]} 34...
b3 {[%clk 0:00:05.4]} 35. Bxb3 {[%clk 0:00:21.9]} 35... c4 {[%clk 0:00:06.7]}
36. Bc2 {[%clk 0:00:23.4]} 36... d5 {[%clk 0:00:07.7]} 37. Rh7 {[%clk
0:00:21.7]} 37... Ke8 {[%clk 0:00:07.9]} 38. Ba4+ {[%clk 0:00:22.9]} 38... Kd8
{[%clk 0:00:08.6]} 39. Ng7 {[%clk 0:00:24.8]} 39... d4 {[%clk 0:00:05.4]} 40.
Ne6+ {[%clk 0:00:26.2]} 40... fxe6 {[%clk 0:00:03.6]} 41. fxe6 {[%clk
0:00:28.1]} 41... d3 {[%clk 0:00:02.7]} 42. e7+ {[%clk 0:00:28.9]} 42... Kc7
{[%clk 0:00:03.5]} 43. e8=Q+ {[%clk 0:00:30.8]} 43... Kb8 {[%clk 0:00:02.4]} 44.
Qb5+ {[%clk 0:00:32.3]} 1-0

[Event "*** Titled Tuesday Blitz"]
[Site "Chess.com"]
[Date "2018.06.05"]
[Round "8"]
[White "KRASAVCHIK2002"]
[Black "fyall777"]
[Result "0-1"]
[WhiteElo "2231"]
[BlackElo "2324"]
[TimeControl "180+2"]
[EndTime "14:56:49 PDT"]
[Termination "fyall777 won by resignation"]

1. e4 {[%clk 0:03:01.9]} 1... e5 {[%clk 0:03:00.1]} 2. Nf3 {[%clk 0:02:59.1]}
2... Qe7 {[%clk 0:03:00.8]} 3. Nc3 {[%clk 0:02:58.6]} 3... Nf6 {[%clk
0:03:00.7]} 4. Bc4 {[%clk 0:02:55.5]} 4... h6 {[%clk 0:02:59.7]} 5. d3 {[%clk
0:02:55.7]} 5... c6 {[%clk 0:02:58.1]} 6. O-O {[%clk 0:02:56.2]} 6... g6 {[%clk
0:02:58.5]} 7. d4 {[%clk 0:02:41.7]} 7... d6 {[%clk 0:02:58.1]} 8. h3 {[%clk
0:02:23.2]} 8... Bg7 {[%clk 0:02:57.8]} 9. dxe5 {[%clk 0:02:20.6]} 9... dxe5
{[%clk 0:02:58]} 10. Qe2 {[%clk 0:02:21.6]} 10... O-O {[%clk 0:02:56.9]} 11. a4
{[%clk 0:02:17.3]} 11... Nbd7 {[%clk 0:02:33.8]} 12. b3 {[%clk 0:02:12.8]} 12...
Re8 {[%clk 0:02:33.2]} 13. Ba3 {[%clk 0:02:12.1]} 13... Nc5 {[%clk 0:02:34.1]}
14. a5 {[%clk 0:01:30.1]} 14... Nfd7 {[%clk 0:02:28.2]} 15. Na4 {[%clk
0:01:09.7]} 15... Bf8 {[%clk 0:02:28.6]} 16. Qe3 {[%clk 0:01:00.8]} 16... Rb8
{[%clk 0:02:22.3]} 17. Rfd1 {[%clk 0:00:45.7]} 17... b6 {[%clk 0:02:21.5]} 18.
axb6 {[%clk 0:00:42.8]} 18... axb6 {[%clk 0:02:17.8]} 19. Nxc5 {[%clk
0:00:39.2]} 19... Nxc5 {[%clk 0:02:17.9]} 20. b4 {[%clk 0:00:36.9]} 20... Nd7
{[%clk 0:01:50.9]} 21. b5 {[%clk 0:00:35.8]} 21... c5 {[%clk 0:01:51.7]} 22. Bb2
{[%clk 0:00:32.2]} 22... Bg7 {[%clk 0:01:47]} 23. Ra7 {[%clk 0:00:29.9]} 23...
Rb7 {[%clk 0:01:46.1]} 24. Ra8 {[%clk 0:00:23.2]} 24... Nf8 {[%clk 0:01:44.3]}
25. Qb3 {[%clk 0:00:16]} 25... Rd7 {[%clk 0:01:33.4]} 26. Bd5 {[%clk 0:00:16.1]}
26... Bb7 {[%clk 0:01:26.7]} 27. Rxe8 {[%clk 0:00:15.7]} 27... Qxe8 {[%clk
0:01:27.9]} 28. g3 {[%clk 0:00:08.2]} 28... Nh7 {[%clk 0:00:53.6]} 29. Kg2
{[%clk 0:00:08.6]} 29... Ng5 {[%clk 0:00:47]} 30. Qc4 {[%clk 0:00:04.8]} 30...
Nxf3 {[%clk 0:00:42.4]} 31. Kxf3 {[%clk 0:00:05.5]} 31... Kh7 {[%clk 0:00:42.1]}
32. Kg2 {[%clk 0:00:06.4]} 32... f5 {[%clk 0:00:41.2]} 33. Rd3 {[%clk
0:00:07.3]} 33... fxe4 {[%clk 0:00:39.4]} 34. Bxe4 {[%clk 0:00:08.4]} 34... Rxd3
{[%clk 0:00:33.2]} 35. Qxd3 {[%clk 0:00:08.5]} 35... Bxe4+ {[%clk 0:00:33.7]}
36. Qxe4 {[%clk 0:00:09.6]} 36... Qxb5 {[%clk 0:00:34.8]} 37. Bxe5 {[%clk
0:00:09.4]} 37... Qe8 {[%clk 0:00:35.7]} 38. f4 {[%clk 0:00:09.6]} 38... Bxe5
{[%clk 0:00:34.9]} 39. fxe5 {[%clk 0:00:10.2]} 39... Qe6 {[%clk 0:00:33]} 40. h4
{[%clk 0:00:11]} 40... h5 {[%clk 0:00:33.8]} 41. Qf4 {[%clk 0:00:09.1]} 41... b5
{[%clk 0:00:33.6]} 42. Qf6 {[%clk 0:00:08.9]} 42... Qxf6 {[%clk 0:00:33.8]} 43.
exf6 {[%clk 0:00:09.5]} 43... b4 {[%clk 0:00:34.9]} 44. Kf3 {[%clk 0:00:09.6]}
44... c4 {[%clk 0:00:36.1]} 45. Ke4 {[%clk 0:00:10.4]} 45... b3 {[%clk
0:00:37.2]} 46. cxb3 {[%clk 0:00:11.8]} 46... cxb3 {[%clk 0:00:38.4]} 47. Kd3
{[%clk 0:00:13.7]} 47... Kg8 {[%clk 0:00:39.2]} 48. Kc3 {[%clk 0:00:15.6]} 48...
Kf7 {[%clk 0:00:40.6]} 49. Kxb3 {[%clk 0:00:17.5]} 49... Kxf6 {[%clk 0:00:42]}
50. Kc3 {[%clk 0:00:19.4]} 50... Kf5 {[%clk 0:00:43.4]} 51. Kd3 {[%clk
0:00:21.3]} 51... Kg4 {[%clk 0:00:44.7]} 52. Ke4 {[%clk 0:00:21.5]} 52... Kxg3
{[%clk 0:00:45.9]} 0-1

[Event "*** Titled Tuesday Blitz"]
[Site "Chess.com"]
[Date "2018.06.05"]
[Round "8"]
[White "ruvat"]
[Black "Leo_C"]
[Result "1/2-1/2"]
[WhiteElo "2250"]
[BlackElo "2176"]
[TimeControl "180+2"]
[EndTime "14:56:52 PDT"]
[Termination "Game drawn by agreement"]

1. d4 {[%clk 0:03:01.9]} 1... d5 {[%clk 0:02:59.9]} 2. Nf3 {[%clk 0:03:00.6]}
2... Nf6 {[%clk 0:03:00.4]} 3. c4 {[%clk 0:02:59.1]} 3... c6 {[%clk 0:03:00.8]}
4. Qc2 {[%clk 0:02:58.5]} 4... Nbd7 {[%clk 0:02:55.7]} 5. g3 {[%clk 0:02:51.8]}
5... e6 {[%clk 0:02:50.9]} 6. Bg2 {[%clk 0:02:51.9]} 6... Bd6 {[%clk 0:02:52.1]}
7. O-O {[%clk 0:02:52]} 7... O-O {[%clk 0:02:53.1]} 8. Nbd2 {[%clk 0:02:53.5]}
8... Qe7 {[%clk 0:02:46.1]} 9. Re1 {[%clk 0:02:52.9]} 9... b6 {[%clk 0:02:41.4]}
10. e4 {[%clk 0:02:52.3]} 10... Nxe4 {[%clk 0:02:41.1]} 11. Nxe4 {[%clk
0:02:51.7]} 11... dxe4 {[%clk 0:02:42]} 12. Qxe4 {[%clk 0:02:50.4]} 12... Bb7
{[%clk 0:02:40.4]} 13. Bg5 {[%clk 0:02:44.9]} 13... Nf6 {[%clk 0:02:36.4]} 14.
Qh4 {[%clk 0:02:45]} 14... h6 {[%clk 0:02:35.8]} 15. Bxf6 {[%clk 0:02:45]} 15...
Qxf6 {[%clk 0:02:36.5]} 16. Qxf6 {[%clk 0:02:45.8]} 16... gxf6 {[%clk
0:02:38.1]} 17. Nh4 {[%clk 0:02:36.3]} 17... Rab8 {[%clk 0:02:30]} 18. Rad1
{[%clk 0:02:29.8]} 18... Rfd8 {[%clk 0:02:30.4]} 19. a3 {[%clk 0:02:28.8]} 19...
Kg7 {[%clk 0:02:25.6]} 20. b4 {[%clk 0:02:28.3]} 20... Be7 {[%clk 0:02:21.6]}
21. f4 {[%clk 0:02:10.7]} 21... c5 {[%clk 0:01:57.9]} 22. dxc5 {[%clk
0:01:54.4]} 22... bxc5 {[%clk 0:01:51.5]} 23. b5 {[%clk 0:01:55.2]} 23... Bxg2
{[%clk 0:01:48.7]} 24. Kxg2 {[%clk 0:01:55]} 24... Kf8 {[%clk 0:01:33.1]} 25. a4
{[%clk 0:01:49.1]} 25... f5 {[%clk 0:01:25.2]} 26. Nf3 {[%clk 0:01:48.9]} 26...
Bf6 {[%clk 0:01:26]} 27. Kf2 {[%clk 0:01:31.7]} 27... Ke7 {[%clk 0:01:23]} 28.
Ke3 {[%clk 0:01:31.3]} 28... h5 {[%clk 0:01:16.5]} 29. Rxd8 {[%clk 0:01:16.2]}
29... Rxd8 {[%clk 0:01:15.7]} 30. Re2 {[%clk 0:01:15.5]} 30... Bd4+ {[%clk
0:01:11.2]} 31. Nxd4 {[%clk 0:01:14.9]} 31... Rxd4 {[%clk 0:01:08.1]} 32. Rc2
{[%clk 0:01:14.7]} 32... f6 {[%clk 0:01:08.6]} 33. a5 {[%clk 0:01:14.4]} 33...
Kd7 {[%clk 0:01:07]} 34. h4 {[%clk 0:01:09.1]} 34... e5 {[%clk 0:01:06.9]} 35.
fxe5 {[%clk 0:00:52.8]} 35... fxe5 {[%clk 0:01:03.1]} 36. Rf2 {[%clk 0:00:53.2]}
36... Rxc4 {[%clk 0:00:40.5]} 37. Rxf5 {[%clk 0:00:52.8]} 37... Ke6 {[%clk
0:00:41.7]} 38. Rxh5 {[%clk 0:00:52.1]} 38... Rb4 {[%clk 0:00:42.8]} 39. b6
{[%clk 0:00:51.6]} 39... axb6 {[%clk 0:00:43.5]} 40. axb6 {[%clk 0:00:52]} 40...
Kd5 {[%clk 0:00:41.3]} 41. Rh6 {[%clk 0:00:37.2]} 41... Rb3+ {[%clk 0:00:42.3]}
42. Kd2 {[%clk 0:00:35.5]} 42... Rxg3 {[%clk 0:00:39.4]} 43. b7 {[%clk
0:00:33.5]} 43... Rb3 {[%clk 0:00:39.6]} 44. Rh7 {[%clk 0:00:33.4]} 44... Ke6
{[%clk 0:00:34.6]} 45. Kc2 {[%clk 0:00:30.8]} 45... Rb4 {[%clk 0:00:33]} 46. h5
{[%clk 0:00:30.8]} 46... Kf6 {[%clk 0:00:33.5]} 47. Kc3 {[%clk 0:00:31.2]} 47...
Kg5 {[%clk 0:00:33.5]} 48. Re7 {[%clk 0:00:30.4]} 48... Kxh5 {[%clk 0:00:31.2]}
49. Rxe5+ {[%clk 0:00:30.8]} 49... Kg6 {[%clk 0:00:30.3]} 50. Rxc5 {[%clk
0:00:30.5]} 50... Rxb7 {[%clk 0:00:30]} 1/2-1/2